[Event "Indian Rapid Championship 2023-24"]
[Site "Nashik"]
[Date "2024.03.06"]
[Round "9.2"]
[White "Sengupta, Deep"]
[Black "Wagh Suyog"]
[Result "0-1"]
[ECO "A13"]
[WhiteElo "2500"]
[BlackElo "2250"]
[Annotator "TA"]
[PlyCount "110"]
[EventDate "2024.03.02"]
[EventType "swiss"]
[EventCountry "IND"]
[SourceTitle "playchess.com"]
[Source "ChessBase"]
[SourceQuality "1"]
[TimeControl "900+10"]

{[%evp 27,110,-26,0,0,0,0,0,0,0,-27,-25,-41,0,0,-6,-29,-37,-51,-17,-37,-13,-25,0,-22,-17,-24,-11,-20,54,-20,36,-24,-17,-93,252,248,260,0,0,0,0,0,14,-40,-10,-39,-34,-43,-20,-62,-95,-140,-146,-229,-243,-458,-141,-242,-204,-176,-176,-269,-96,-204,-106,-97,-28,-41,0,-362,-336,-973,-1055,-987,-1018,-810,-866,-867,-865,-848,-836,-761,-794,-1829,-1777]} 1. Nf3 {[%emt 0:00:04]} Nf6 {[%emt 0:00:26]} 2. c4 {[%emt 0:00:06]} e6 {[%emt 0:00:35]} 3. b3 {[%emt 0:00:24]} d5 {[%emt 0:01:50]} 4. Bb2 {[%emt 0:00:02]} b6 {[%emt 0:00:21]} 5. cxd5 {[%emt 0:01:25]} exd5 {[%emt 0:00:05]} 6. g3 {[%emt 0:00:01] A13: English Opening: 1...e6.} Bb7 {[%emt 0:00:31]} 7. Bg2 {[%emt 0:00:02]} Bd6 {[%emt 0:00:19]} 8. O-O {[%emt 0:00:05]} O-O {[%emt 0:00:03]} 9. Nc3 {[%emt 0:02:13]} a6 {[%emt 0:00:27]} 10. e3 {[%emt 0:00:35]} Nbd7 {[%emt 0:00:53]} 11. Ne2 {[%emt 0:00:03]} Re8 {[%emt 0:00:03]} 12. Qc2 {[%emt 0:00:11]} Rc8 {[%emt 0:00:14]} 13. Rac1 {[%emt 0:04:31]} c5 {[%emt 0:00:47]} 14. d3 $146 {[%emt 0:00:32]} ({Predecessor:} 14. Qb1 b5 15. Nf4 b4 16. Rfd1 Qb6 17. Qf5 d4 18. Nh5 Be4 19. Nxf6+ Nxf6 20. Qh3 {1-0 Philippe,G (2334)-Bilych,O (2433) Marseille op 16th 2023 (9)}) 14... Qe7 {[%emt 0:01:20]} 15. Rfe1 {[%emt 0:00:28]} b5 {[%emt 0:00:50]} 16. Qb1 {[%emt 0:01:17]} b4 {[%emt 0:02:37]} 17. Qa1 {[%emt 0:03:32]} a5 {[%emt 0:00:11]} 18. Nh4 {[%emt 0:00:22]} g6 {[%emt 0:00:20]} 19. Nf3 {[%emt 0:00:54]} Ng4 {[%emt 0:00:18]} (19... a4 $5 20. Qb1 a3 $15) 20. Nf4 {[%emt 0:00:16]} a4 {[%emt 0:01:55]} 21. Qb1 {[%emt 0:00:59]} a3 {[%emt 0:01:49]} 22. Ba1 {[%emt 0:00:02]} Nb6 {[%emt 0:00:25]} 23. Qc2 {[%emt 0:00:33]} Ba8 {[%emt 0:01:36]} 24. Qd2 {[%emt 0:00:03]} Bb7 {[%emt 0:00:14]} 25. h3 {[%emt 0:00:18]} Nf6 {[%emt 0:00:04]} 26. Nh2 {[%emt 0:00:04]} Rcd8 {[%emt 0:00:23]} 27. h4 {[%emt 0:00:15]} h6 {[%emt 0:00:29]} ({Better is} 27... Ba8 $11) 28. Qd1 {[%emt 0:00:17]} (28. Bxf6 $1 $14 Qxf6 29. Ng4) 28... Kh7 {[%emt 0:00:15]} (28... h5 $11) 29. Qf3 {[%emt 0:00:06]} (29. Ng4 $14 Ng8 30. Qf3) 29... h5 $11 {[%emt 0:00:21]} 30. d4 {[%emt 0:00:14]} (30. Qd1 $11 {keeps the balance.}) 30... Ne4 $2 {[%emt 0:00:07][%mdl 8192]} (30... c4 $17 {keeps the pressure on. Hoping for ...c3.} 31. bxc4 Nxc4) 31. dxc5 $18 {[%emt 0:00:02]} Bxc5 {[%emt 0:00:03]} 32. Nd3 $2 {[%emt 0:00:04]} (32. Nxh5 $18 Nd7 33. Rxc5 Ndxc5 34. Ng4) 32... Bd6 $11 {[%emt 0:00:11]} 33. Qd1 {[%emt 0:00:17]} Nd7 {[%emt 0:00:23]} 34. Nf3 {[%emt 0:00:02]} Rc8 {[%emt 0:00:07]} 35. Bd4 {[%emt 0:00:05]} (35. Rxc8 $11 Rxc8 36. Nf4) 35... Rxc1 {[%emt 0:00:05]} 36. Qxc1 {[%emt 0:00:01]} Rc8 {[%emt 0:00:01]} 37. Qa1 {[%emt 0:00:03]} Nc3 {[%emt 0:00:06]} (37... Ndc5 {simplifies} 38. Nxc5 Bxc5 39. Rc1 Bxd4 40. Nxd4 Nc3) 38. Kh2 {[%emt 0:00:23]} Nf6 {[%emt 0:00:07]} 39. Ng5+ {[%emt 0:00:17]} Kg8 {[%emt 0:00:00]} 40. f3 {[%emt 0:00:03]} (40. Nh3 $17) 40... Nh7 $19 {[%emt 0:00:17]} 41. Nxh7 $2 {[%emt 0:00:30]} (41. f4) 41... Kxh7 $2 {[%emt 0:00:07]} (41... Qxh4+ $19 42. Kg1 Bxg3 (42... Qxg3 43. Nf6+ Kf8 44. Nf4 $17) 43. Nf6+ Kf8) 42. Nf4 {[%emt 0:00:02]} (42. f4 $17 {was necessary.}) 42... Be5 {[%emt 0:00:23]} (42... Nxa2 43. Bf6 Qc7 44. Qxa2 $16) 43. Bh3 {[%emt 0:00:14]} Re8 {[%emt 0:00:10]} 44. Nd3 {[%emt 0:00:20]} (44. Ne6 {was the only chance.}) 44... Bd6 $2 {[%emt 0:00:16]} (44... Bg7 $19 {has better winning chances. Strongly threatening ...Ba6.} 45. Bf1 Ba6 46. Bxg7 Kxg7 47. Nxb4 Qxb4 48. Bxa6 Kg8) 45. Kg2 {[%emt 0:00:02] [#]} (45. f4 $17) 45... Ba6 {[%emt 0:00:02]} ({Black should try} 45... Qc7 $1 $19 46. Nf4 Be5 47. Bxe5 Qxe5) 46. Bxc3 $17 {[%emt 0:00:11]} Bxd3 {[%emt 0:00:28]} ({Black should play} 46... bxc3 $17 47. Qxc3 f5) 47. Bf6 $11 {[%emt 0:00:01]} Qa7 {[%emt 0:00:09]} (47... Qc7 {simplifies} 48. Qc1 Bxg3 49. Qxc7 Bxc7 50. Bd7 Rg8) 48. Kf2 $2 {[%emt 0:00:28][%mdl 8192]} (48. Qc1 $1 $11 {and White stays safe.}) 48... Qc7 $19 {[%emt 0:00:07]} 49. f4 $2 {[%emt 0:00:10]} (49. Rc1 Bc5 (49... Bxg3+ 50. Kg2 $17) 50. Bg5) 49... Qc2+ $19 {[%emt 0:00:02]} 50. Kg1 {[%emt 0:00:02]} Bc5 {[%emt 0:00:23]} 51. Bd4 {[%emt 0:00:03]} Bxd4 {[%emt 0:00:08]} 52. Qxd4 {[%emt 0:00:01]} Qd2 {[%emt 0:00:09]} 53. Rf1 {[%emt 0:00:27]} Qxe3+ {[%emt 0:00:15]} 54. Qxe3 {[%emt 0:00:02]} Rxe3 {[%emt 0:00:01]} 55. Bg2 {[%emt 0:00:21]} Bxf1 {[%emt 0:00:02]} 0-1

[Event "Indian Rapid Championship 2023-24"]
[Site "Nashik"]
[Date "2024.03.06"]
[Round "9.3"]
[White "Prraneeth Vuppala"]
[Black "Aronyak Ghosh"]
[Result "0-1"]
[ECO "B12"]
[WhiteElo "2506"]
[BlackElo "2517"]
[Annotator "TA"]
[PlyCount "68"]
[EventDate "2024.03.02"]
[EventType "swiss"]
[EventCountry "IND"]
[SourceTitle "playchess.com"]
[Source "ChessBase"]
[SourceQuality "1"]
[TimeControl "900+10"]

{[%evp 13,68,-39,9,16,12,0,25,0,0,-11,-9,-23,0,-1,0,0,0,0,0,0,8,0,9,-22,-23,-102,-100,-98,-88,-104,-109,-100,0,0,0,-122,-114,-130,-124,-215,-200,-414,-431,-440,-400,-431,-431,-414,-445,-554,-547,-1337,-1328,-29975,-1268,-29982,-29983]} 1. e4 {[%emt 0:03:38]} c6 {[%emt 0:00:20]} 2. d4 {[%emt 0:00:02]} d5 {[%emt 0:00:02]} 3. e5 {[%emt 0:00:03]} Bf5 {[%emt 0:00:06]} 4. h4 {[%emt 0:00:04]} h5 {[%emt 0:00:22]} 5. Bd3 {[%emt 0:00:04]} Bxd3 {[%emt 0:00:05]} 6. Qxd3 {[%emt 0:00:02] B12: Caro-Kann: Advance Variation.} Qa5+ {[%emt 0:00:02]} 7. b4 {[%emt 0:00:28]} Qa6 {[%emt 0:00:36]} (7... Qxb4+ $15 8. Nd2 e6) 8. Qb3 $11 {[%emt 0:01:07]} e6 {[%emt 0:01:13]} 9. Nd2 {[%emt 0:01:03]} Nd7 {[%emt 0:01:13]} 10. Ngf3 {[%emt 0:00:41]} Ne7 {[%emt 0:01:26]} 11. a4 {[%emt 0:02:33]} Nf5 {[%emt 0:01:10]} 12. Ba3 $146 {[%emt 0:01:11]} ({Predecessor:} 12. Bb2 Qb6 13. b5 Be7 14. c4 O-O 15. cxd5 cxd5 16. a5 Qd8 17. g3 a6 18. b6 {½-½ Baidetsky,V (2464)-Polak,T (2506) Vienna 2023 (5)}) 12... Qb6 {[%emt 0:02:19]} 13. c3 {[%emt 0:01:27]} Be7 {[%emt 0:00:45]} 14. g3 {[%emt 0:00:40]} a5 {[%emt 0:01:20]} 15. bxa5 {[%emt 0:00:12]} Rxa5 {[%emt 0:00:26]} 16. Bxe7 {[%emt 0:00:34]} Nxe7 {[%emt 0:00:31]} 17. Qa3 {[%emt 0:00:40]} Qc7 {[%emt 0:01:49]} 18. O-O {[%emt 0:00:37]} b5 {[%emt 0:01:01]} 19. Nb3 {[%emt 0:02:35]} (19. Qd6 $11 Qa7 20. Rfb1) 19... Rxa4 $17 {[%emt 0:00:28]} 20. Qd6 {[%emt 0:00:02]} Qc8 {[%emt 0:01:51]} 21. Rxa4 {[%emt 0:00:18]} bxa4 {[%emt 0:00:01]} 22. Na5 {[%emt 0:00:11] [#]} Nf5 {[%emt 0:00:37]} (22... c5 $1 $17 {...Nf5 would now be deadly.} 23. Ra1 Nf5) 23. Qb4 $11 {[%emt 0:00:20]} c5 {[%emt 0:00:14]} 24. dxc5 {[%emt 0:00:05]} (24. Qxa4 $11 {remains equal.} O-O 25. Rb1) 24... Qxc5 $17 {[%emt 0:00:32]} (24... Nxc5 $6 25. Nc6 Na6 (25... Qxc6 26. Qb8+ Ke7 27. Qxh8 $16) 26. Qxa4 $11) 25. Qxa4 {[%emt 0:00:21]} O-O {[%emt 0:00:05]} (25... Nxg3 $2 26. Nb7 Ne2+ 27. Kh2 $18 (27. Kg2 Qc7 $18)) 26. Qb4 {[%emt 0:00:17]} (26. Qxd7 $17 Qxc3 (26... Qxa5 27. Nd4 $17) 27. Ng5 (27. g4 $2 hxg4 28. Nh2 Qxa5 $19) 27... Qxa5 28. Rc1) 26... Qc7 {[%emt 0:00:08]} 27. Re1 $2 {[%emt 0:00:05]} (27. c4) 27... Rb8 $19 {[%emt 0:00:05]} 28. Qa3 {[%emt 0:00:17]} Ra8 {[%emt 0:00:08]} 29. Ra1 {[%emt 0:00:06]} Nxe5 {[%emt 0:00:03]} 30. Nxe5 {[%emt 0:00:08]} Qxe5 {[%emt 0:00:03]} 31. Qb4 {[%emt 0:00:11]} Rc8 {[%emt 0:00:04]} 32. Rc1 {[%emt 0:00:16]} Nxg3 {[%emt 0:00:11]} 33. Qb7 {[%emt 0:00:11]} Rb8 {[%emt 0:00:11]} (33... Ne2+ $142 34. Kf1 Rb8 (34... Rxc3 $2 35. Rxc3 Nxc3 36. Qa6 $19) 35. Qxb8+ Qxb8 36. Kxe2 Qb5+ 37. c4 Qxa5 38. cxd5 Qa6+ (38... Qxd5 $2 39. Rg1 $19) (38... exd5 $2 39. Rd1 $19) 39. Kd2 exd5 40. Rc2 Qf6 41. Ke2 Qxh4 42. Kd2 Qxf2+ 43. Kc3 Qxc2+ 44. Kxc2 h4 45. Kd3 h3 46. Kd4 h2 47. Kxd5 g5 (47... h1=R {is a self mate.} 48. Ke4 Rf1 49. Ke3 g5 50. Ke2 Rf6 51. Ke3 g4 52. Kd4 g3 53. Ke5 Re6+ 54. Kd4 g2 55. Kc5 g1=Q+ 56. Kc4 Qe3 57. Kb4 Qd4+ 58. Kb3 Rb6+ 59. Kc2 Rb2+ 60. Kc1 Qd2#) (47... h1=Q+ {gets mated.} 48. Kd4 g5 49. Ke5 Qc6 50. Kd4 g4 51. Kd3 g3 52. Ke3 g2 53. Kf2 Qe4 54. Kg1 Qg4 55. Kh2 g1=Q#) 48. Ke4 h1=Q+ (48... h1=R 49. Kf5 Rg1 50. Kf6 Rf1+ 51. Kxg5 Kg7 52. Kg4 Kf6 53. Kg3 Kg5 54. Kg2 Rf6 55. Kg3 Rf5 56. Kh2 Kf4 57. Kh3 Kf3 58. Kh2 Rh5+ 59. Kg1 Rh4 60. Kf1 Rh1#) 49. Ke3 g4 50. Kf4 Qe1 (50... Qf3+ 51. Ke5 g3 52. Kd6 g2 53. Kd7 g1=Q 54. Kc7 Qc5+ 55. Kd7 Qg4+ 56. Ke8 Qf8#) 51. Kxg4 Qf2 (51... Qg1+ {leads to mate.} 52. Kf3 Qd1+ 53. Kg3 Qf1 54. Kh2 Kg7 55. Kg3 Qe2 56. Kh3 Kf6 57. Kg3 Kg5 58. Kh3 Kf4 59. Kh4 Qh2#) 52. Kh3 Kg7 53. Kg4 f5+ 54. Kh3 Qg1 55. Kh4 Qg4#) 34. Qa7 {[%emt 0:00:09]} Ne2+ {[%emt 0:00:05]} 0-1

[Event "Indian Rapid Championship 2023-24"]
[Site "Nashik"]
[Date "2024.03.06"]
[Round "9.4"]
[White "Sammed Jaykumar, Shete"]
[Black "Hari Madhavan N B"]
[Result "1-0"]
[ECO "B45"]
[WhiteElo "2404"]
[BlackElo "2395"]
[Annotator "TA"]
[PlyCount "75"]
[EventDate "2024.03.02"]
[EventType "swiss"]
[EventCountry "IND"]
[SourceTitle "playchess.com"]
[Source "ChessBase"]
[SourceQuality "1"]
[TimeControl "900+10"]

{[%evp 17,75,-3,0,0,20,0,20,18,25,19,13,18,28,33,25,10,10,0,0,0,12,0,0,0,0,0,0,0,0,3,37,19,41,23,15,26,36,0,406,413,425,410,393,411,378,380,567,558,756,722,1091,904,1348,959,5577,878,29987,29988,29990,29989]} 1. e4 {[%emt 0:00:03]} c5 {[%emt 0:00:10]} 2. Nf3 {[%emt 0:00:07]} e6 {[%emt 0:00:01][%cal Be7e6,Be6e5][%mdl 32]} 3. d4 {[%emt 0:00:21]} cxd4 {[%emt 0:00:06]} 4. Nxd4 {[%emt 0:00:01]} Nc6 {[%emt 0:00:04]} 5. Nc3 {[%emt 0:00:04]} Nf6 {[%emt 0:00:01]} 6. Nxc6 {[%emt 0:01:51]} bxc6 {[%emt 0:00:04]} 7. Bd3 {[%emt 0:00:09]} e5 {[%emt 0:00:38]} 8. O-O {[%emt 0:00:13]} Be7 {[%emt 0:00:38]} 9. f4 {[%emt 0:00:43]} d6 {[%emt 0:00:32]} 10. h3 {[%emt 0:00:02]} O-O {[%emt 0:00:07]} 11. Kh1 {[%emt 0:00:44]} exf4 {[%emt 0:02:38]} 12. Bxf4 {[%emt 0:00:18] The position is equal.} Nd7 {[%emt 0:00:02]} 13. Bc4 {[%emt 0:01:12]} Nb6 {[%emt 0:02:10]} 14. Bb3 {[%emt 0:00:01]} Be6 {[%emt 0:00:07]} 15. Bxe6 {[%emt 0:01:50]} fxe6 {[%emt 0:00:06]} 16. Qg4 {[%emt 0:00:02]} Qd7 {[%emt 0:00:09]} 17. e5 {[%emt 0:03:09]} d5 {[%emt 0:01:00]} 18. Ne2 {[%emt 0:00:02][%cal Bc3e2,Be2f4,Bf4d3][%mdl 32]} Bc5 {[%emt 0:03:09] Against Nd4} 19. b3 {[%emt 0:01:38]} Rf7 {[%emt 0:00:31]} 20. Bh2 $40 {[%emt 0:00:16][%mdl 128] White has some attack.} Raf8 {[%emt 0:00:20]} 21. Rxf7 {[%emt 0:00:06]} Qxf7 {[%emt 0:00:01]} 22. Nf4 {[%emt 0:00:08]} Re8 {[%emt 0:00:41]} 23. Nd3 {[%emt 0:00:31]} Be3 {[%emt 0:00:38]} 24. Re1 {[%emt 0:00:13]} d4 {[%emt 0:00:13]} 25. Bg1 {[%emt 0:00:08]} Nd5 {[%emt 0:00:03]} 26. c4 {[%emt 0:00:41]} h5 {[%emt 0:01:49]} 27. Qg3 {[%emt 0:00:27]} Nf4 {[%emt 0:00:10][%mdl 8192]} (27... Ne7 $11 {and Black is okay.}) 28. Rxe3 $18 {[%emt 0:00:36]} dxe3 {[%emt 0:00:15]} 29. Nxf4 {[%emt 0:00:26]} Qf5 {[%emt 0:00:16]} 30. Qxe3 {[%emt 0:00:14]} Rd8 {[%emt 0:00:02]} 31. Ne2 {[%emt 0:00:17][%cal Oe2d4] Against c5. Strongly threatening Nd4!} Rd1 {[%emt 0:00:21]} (31... Rd3 $142 32. Qf4 (32. Qxa7 Qf1 $11) 32... Rd1 33. Qxf5 exf5) 32. Nd4 {[%emt 0:00:30]} (32. Qxa7 Qxe5 33. Nd4 Rxg1+ 34. Kxg1 Qe1+ 35. Kh2 Qe5+ 36. g3 h4 $16) 32... Qf1 {[%emt 0:00:34] [#] ...Re1 would now be deadly.} 33. Nxe6 {[%emt 0:02:00]} c5 {[%emt 0:00:14]} 34. Ng5 {[%emt 0:00:27][%cal Oe5e6] Black must now prevent e6!} ({Less strong is} 34. Nxc5 Re1 35. Qd4 Rd1 $11) 34... g6 {[%emt 0:00:57]} 35. Nf3 {[%emt 0:00:18][%cal Oe5e6] aiming for e6!} Ra1 {[%emt 0:00:10]} 36. Qd2 {[%emt 0:00:49] [#] White threatens Qd8+ and mate.} a6 {[%emt 0:00:18]} 37. e6 {[%emt 0:00:05]} Qd1 {[%emt 0:00:05]} 38. Qf4 {[%emt 0:00:18] Weighted Error Value: White=0.10 (very precise) /Black=0.70.  Loses game:     	---       	Black=1      Mistake:       	---       	Black=1      Inaccurate:     	White=1     	Black=3      OK:         	White=11    	Black=10     Best:        	White=1     	Black=1} 1-0

[Event "Indian Rapid Championship 2023-24"]
[Site "Nashik"]
[Date "2024.03.06"]
[Round "9.5"]
[White "Kushagra Mohan"]
[Black "Srihari L R"]
[Result "0-1"]
[ECO "C11"]
[WhiteElo "2351"]
[BlackElo "2490"]
[Annotator "TA"]
[PlyCount "62"]
[EventDate "2024.03.02"]
[EventType "swiss"]
[EventCountry "IND"]
[SourceTitle "playchess.com"]
[Source "ChessBase"]
[SourceQuality "1"]
[TimeControl "900+10"]

{[%evp 22,62,27,26,20,1,2,6,12,11,39,26,26,17,29,15,20,1,13,0,0,0,0,0,0,0,0,-13,-16,-56,-44,-322,-323,-323,-326,-326,-326,-423,-427,-459,-447,-466,-455]} 1. e4 {[%emt 0:00:01]} e6 {[%emt 0:00:26]} 2. d4 {[%emt 0:00:02]} d5 {[%emt 0:00:01]} 3. Nc3 {[%emt 0:00:02]} Nf6 {[%emt 0:00:01]} 4. e5 {[%emt 0:00:00]} Nfd7 {[%emt 0:00:01]} 5. f4 {[%emt 0:00:01]} c5 {[%emt 0:00:00]} 6. Nf3 {[%emt 0:00:01]} Nc6 {[%emt 0:00:01]} 7. Be3 {[%emt 0:00:01]} a6 {[%emt 0:00:01]} 8. a3 {[%emt 0:00:11]} cxd4 {[%emt 0:02:25]} 9. Nxd4 {[%emt 0:00:08]} Bc5 {[%emt 0:00:13]} 10. Qd2 {[%emt 0:00:47]} Nxd4 {[%emt 0:00:16]} 11. Bxd4 {[%emt 0:00:02]} Bxd4 {[%emt 0:00:56]} 12. Qxd4 {[%emt 0:00:01]} Qb6 {[%emt 0:00:00]} 13. O-O-O {[%emt 0:00:36]} Qxd4 {[%emt 0:00:04]} 14. Rxd4 {[%emt 0:00:01]} Nb8 {[%emt 0:00:03] The position is equal.} 15. Na4 {[%emt 0:00:25]} Nc6 {[%emt 0:01:46]} 16. Rd2 {[%emt 0:00:02]} b5 {[%emt 0:00:18]} 17. Nc5 {[%emt 0:01:04]} h5 {[%emt 0:01:48]} 18. h4 {[%emt 0:00:15]} g6 {[%emt 0:01:05]} 19. Rh3 {[%emt 0:02:07]} Ke7 {[%emt 0:00:06]} 20. a4 {[%emt 0:00:28]} Bd7 {[%emt 0:02:39]} 21. Kb1 {[%emt 0:02:05]} Rhb8 {[%emt 0:01:05]} 22. Ra3 {[%emt 0:01:50] aiming for Nxd7.} Na5 {[%emt 0:01:49]} 23. b3 {[%emt 0:03:45] Prevents Nc4} Be8 {[%emt 0:01:37]} 24. Kb2 {[%emt 0:00:22]} bxa4 {[%emt 0:01:31] Strongly threatening ...Bb5.} 25. Nxa4 {[%emt 0:00:02]} Bb5 $1 {[%emt 0:00:39]} 26. Bxb5 {[%emt 0:00:46][%mdl 8192] This move loses the game for White.} ({White should play} 26. Bd3 $15) 26... axb5 $19 {[%emt 0:00:01]} 27. Nc5 {[%emt 0:00:06] [#]} Nc4+ $1 {[%emt 0:00:01][%mdl 512]} 28. bxc4 {[%emt 0:01:05]} bxc4+ {[%emt 0:00:01]} 29. Rb3 {[%emt 0:01:12]} (29. Ka2 c3 30. Nb3 Rxa3+ (30... cxd2 $2 31. Nxd2 f6 32. c4 $19) 31. Kxa3 Rxb3+ (31... cxd2 $2 32. Nxd2 f6 33. exf6+ Kxf6 34. c4 $19) 32. Ka4 cxd2 33. Kxb3 d1=Q (33... d1=B $2 34. Kc3 $19) 34. Kc3 d4+ 35. Kc4 Qd2 (35... Qxc2+ {gets mated.} 36. Kxd4 Qxg2 37. Kd3 Qf3+ 38. Kd2 Kd7 39. f5 gxf5 40. Kc2 Kc6 41. Kd2 Kd5 42. Kc2 Kc4 43. Kb2 Qf2+ 44. Ka3 Qd2 45. Ka4 Qb4#) 36. Kc5 Qc3+ (36... Qxf4 {is a self mate.} 37. Kc4 Qd2 38. g3 Qc3+ 39. Kb5 Qxc2 40. Kb4 d3 41. Ka3 d2 42. Kb4 Qb2+ 43. Kc4 d1=Q 44. Kc5 Qd5#) 37. Kb6 Qxc2 38. g3 d3 39. Kb5 d2 40. Ka6 d1=Q (40... d1=B 41. Kb5 Be2+ 42. Kb4 Qb2+ 43. Ka4 Bc4 44. f5 Qb5+ 45. Ka3 Qb3#) 41. f5 Qa4+ (41... Qxf5 42. Ka5 Qd5+ 43. Ka6 Qb1 44. Ka7 Qdb7#) 42. Kb6 Qd8+ 43. Kc5 Qdd4#) 29... cxb3 {[%emt 0:00:01] Black is clearly winning.} 30. cxb3 {[%emt 0:00:00]} Rb5 {[%emt 0:00:05]} 31. Nd3 {[%emt 0:00:15]} Rab8 {[%emt 0:00:09] Weighted Error Value: White=0.40/Black=0.02 (flawless) .  Loses game:     	White=1     	---        Inaccurate:     	White=1     	Black=1      OK:         	White=4     	Black=13     Best:        	White=1     	---        Strong:       	---       	Black=1      Brilliant:      	---       	Black=1} 0-1

[Event "Indian Rapid Championship 2023-24"]
[Site "Nashik"]
[Date "2024.03.06"]
[Round "9.6"]
[White "Aakash Sharadchandra, Dalvi"]
[Black "Sriram, Jha"]
[Result "0-1"]
[ECO "D48"]
[WhiteElo "2291"]
[BlackElo "2312"]
[Annotator "TA"]
[PlyCount "48"]
[EventDate "2024.03.02"]
[EventType "swiss"]
[EventCountry "IND"]
[SourceTitle "playchess.com"]
[Source "ChessBase"]
[SourceQuality "1"]
[TimeControl "900+10"]

{[%evp 21,48,-16,-4,-128,-118,-119,-130,-127,-123,-121,-69,-65,-14,-12,-14,-58,14,-215,-205,-334,-333,-750,-762,-818,-822,-900,-920,-1292,-1294]} 1. d4 {[%emt 0:00:16]} d5 {[%emt 0:00:06]} 2. c4 {[%emt 0:00:01]} c6 {[%emt 0:00:02]} 3. Nf3 {[%emt 0:00:02]} Nf6 {[%emt 0:00:01]} 4. Nc3 {[%emt 0:00:02]} a6 {[%emt 0:00:01]} 5. e3 {[%emt 0:00:11]} e6 {[%emt 0:00:02]} 6. Bd3 {[%emt 0:00:26]} dxc4 {[%emt 0:00:02]} 7. Bxc4 {[%emt 0:00:02]} b5 {[%emt 0:00:00]} 8. Bd3 {[%emt 0:00:05]} c5 {[%emt 0:00:01]} 9. O-O {[%emt 0:00:32]} Bb7 {[%emt 0:00:02]} 10. Qe2 {[%emt 0:00:29]} Nbd7 {[%emt 0:00:32]} 11. Rd1 {[%emt 0:00:17]} Qc7 {[%emt 0:01:04]} 12. a4 {[%emt 0:01:33]} (12. e4 $11 {keeps the balance.}) 12... c4 $1 $17 {[%emt 0:01:30]} 13. Bb1 {[%emt 0:00:42]} b4 {[%emt 0:00:17]} 14. Na2 {[%emt 0:00:03] Black is better.} Qc6 {[%emt 0:04:56] Black is more active.} 15. a5 {[%emt 0:02:10] [#]} Rc8 {[%emt 0:02:15]} ({Better is} 15... Qa4 $1 $17 16. e4 b3 (16... Qxa5 17. d5 $11)) 16. Bd2 $15 {[%emt 0:01:56]} Qb5 {[%emt 0:00:46]} (16... Qa4 $1 $15) 17. e4 $11 {[%emt 0:01:22]} Qxa5 {[%emt 0:00:31]} 18. d5 {[%emt 0:01:21]} e5 {[%emt 0:00:49]} (18... Qb6 $15 19. dxe6 fxe6) 19. Qe1 $2 {[%emt 0:04:14] [#] This costs White the game.} (19. Bc2 $11 Qb5 20. Nxe5) 19... Qa4 $1 $19 {[%emt 0:00:14]} 20. Nxb4 {[%emt 0:01:20]} (20. Bg5 $142) 20... Qxa1 {[%emt 0:00:06]} 21. Ba2 $2 {[%emt 0:00:01]} (21. Bc2 Qa5 (21... Qxb2 22. Rb1 $19) 22. Nc6) 21... Qxb2 {[%emt 0:00:50] Black is clearly winning.} 22. Rb1 {[%emt 0:00:07]} Qa3 {[%emt 0:00:23]} 23. Ra1 {[%emt 0:00:23]} c3 {[%emt 0:00:22]} 24. Bc1 {[%emt 0:01:00]} Qxb4 {[%emt 0:00:10] Weighted Error Value: White=1.27/Black=0.20 (precise) .  Loses game:     	White=1     	---        Mistake:       	White=2     	Black=3      Inaccurate:     	White=1     	---        OK:         	White=4     	Black=3      Best:        	---       	Black=2      Strong:       	---       	Black=2} 0-1